[Event "Hungarian Youth-ch U10 2022"]
[Site "Eger"]
[Date "2022.07.31"]
[Round "9.2"]
[White "Papai, Mate"]
[Black "Hegedus, Zsombor"]
[Result "1-0"]
[ECO "D31"]
[WhiteElo "1385"]
[BlackElo "1348"]
[Annotator "NA"]
[PlyCount "161"]
[EventDate "2022.07.21"]
[EventType "tourn"]
[EventCountry "HUN"]
[SourceTitle "playchess.com"]
[Source "ChessBase"]
[SourceQuality "1"]
[TimeControl "40/5400+30:1800+30"]

1. d4 {[%emt 0:00:41]} d5 {[%emt 0:00:47]} 2. c4 {[%emt 0:01:01]} e6 {[%emt 0:00:17]} 3. Nc3 {[%emt 0:00:23]} Be7 {[%emt 0:00:18]} 4. cxd5 {[%emt 0:00:57]} exd5 {[%emt 0:00:18]} 5. Nf3 {[%emt 0:02:02]} Nf6 {[%emt 0:01:27]} 6. Bg5 {[%emt 0:00:54]} Nbd7 {[%emt 0:01:21]} 7. e3 {[%emt 0:01:17]} O-O {[%emt 0:05:10]} 8. Qc2 {[%emt 0:02:02]} h6 {[%emt 0:01:52]} 9. Bf4 {[%emt 0:02:48]} c6 {[%emt 0:02:08]} 10. Bd3 {[%emt 0:00:53]} Re8 {[%emt 0:03:32]} 11. O-O {[%emt 0:01:55]} b6 {[%emt 0:02:16]} 12. h3 {[%emt 0:03:42]} Bb7 {[%emt 0:01:57]} 13. Rac1 {[%emt 0:04:37]} Rc8 {[%emt 0:01:47]} 14. Rfe1 {[%emt 0:01:08]} c5 {[%emt 0:02:34]} 15. b3 {[%emt 0:03:26]} Nf8 {[%emt 0:07:31]} 16. Bf5 {[%emt 0:02:18]} Ne6 {[%emt 0:03:00]} 17. Bxe6 {[%emt 0:04:24]} fxe6 {[%emt 0:01:40]} 18. Qg6 {[%emt 0:01:01]} Kh8 {[%emt 0:01:33]} 19. Ne5 {[%emt 0:01:44]} Rf8 {[%emt 0:01:59]} 20. Nf7+ {[%emt 0:02:59]} Rxf7 {[%emt 0:00:07]} 21. Qxf7 {[%emt 0:00:10]} Qd7 {[%emt 0:00:52]} 22. Na4 {[%emt 0:08:52]} Rf8 {[%emt 0:02:49]} 23. Qg6 {[%emt 0:00:25]} c4 {[%emt 0:00:44]} 24. Be5 {[%emt 0:09:45]} Bb4 {[%emt 0:02:06]} 25. Re2 {[%emt 0:02:29]} Ba6 {[%emt 0:00:36]} 26. Rec2 {[%emt 0:00:16]} Ba3 {[%emt 0:00:42]} 27. Rd1 {[%emt 0:01:58]} Qb5 {[%emt 0:02:28]} 28. Nc3 {[%emt 0:05:36]} Qb4 {[%emt 0:02:30]} 29. Bxf6 {[%emt 0:01:31]} Rxf6 {[%emt 0:00:29]} 30. Qe8+ {[%emt 0:00:45]} Rf8 {[%emt 0:00:42]} 31. Qa4 {[%emt 0:00:25]} Qxa4 {[%emt 0:01:59]} 32. bxa4 {[%emt 0:01:53]} Rf7 {[%emt 0:02:21]} 33. e4 {[%emt 0:02:42]} Bb7 {[%emt 0:01:05]} 34. exd5 {[%emt 0:00:48]} exd5 {[%emt 0:00:23]} 35. Nb5 {[%emt 0:01:10]} Bc6 {[%emt 0:01:12]} 36. Nxa3 {[%emt 0:01:28]} Bxa4 {[%emt 0:01:00]} 37. Rb1 {[%emt 0:00:45]} Bxc2 {[%emt 0:00:20]} 38. Nxc2 {[%emt 0:00:08]} Rf4 {[%emt 0:00:15]} 39. Rb5 {[%emt 0:00:37]} Re4 {[%emt 0:01:05]} 40. Kf1 {[%emt 0:00:00]} Kg8 41. Rxd5 Kf8 {[%emt 0:01:26]} 42. a4 {[%emt 0:03:07]} Ke8 {[%emt 0:00:39]} 43. Re5+ {[%emt 0:00:48]} Rxe5 {[%emt 0:00:12]} 44. dxe5 Ke7 {[%emt 0:00:16]} 45. Ke2 {[%emt 0:00:29]} Ke6 {[%emt 0:00:05]} 46. f4 {[%emt 0:00:49]} g5 {[%emt 0:00:17]} 47. fxg5 {[%emt 0:00:34]} hxg5 {[%emt 0:00:23]} 48. Kf3 {[%emt 0:00:08]} Kxe5 {[%emt 0:00:27]} 49. Kg4 {[%emt 0:00:08]} Ke4 {[%emt 0:00:13]} 50. Kxg5 {[%emt 0:00:47]} Kd3 {[%emt 0:00:24]} 51. Na1 Kc3 52. h4 {[%emt 0:00:34]} Kb2 {[%emt 0:00:35]} 53. h5 {[%emt 0:00:20]} Kxa1 {[%emt 0:00:11]} 54. h6 {[%emt 0:00:07]} c3 {[%emt 0:00:15]} 55. h7 {[%emt 0:00:05]} c2 {[%emt 0:00:31]} 56. h8=Q+ {[%emt 0:00:05]} Kb1 {[%emt 0:00:12]} 57. Qh7 {[%emt 0:00:21]} Kb2 {[%emt 0:00:08]} 58. Qg7+ {[%emt 0:00:31]} Kb1 {[%emt 0:00:27]} 59. Qg6 {[%emt 0:00:20]} Kb2 {[%emt 0:00:09]} 60. Qf6+ {[%emt 0:00:16]} Kb1 {[%emt 0:00:37]} 61. Qf5 {[%emt 0:01:22]} Kb2 {[%emt 0:00:12]} 62. Qb5+ {[%emt 0:00:21]} Ka2 {[%emt 0:00:28]} 63. Qc4+ {[%emt 0:00:06]} Kb2 {[%emt 0:00:31]} 64. Qb4+ {[%emt 0:00:06]} Ka2 {[%emt 0:00:16]} 65. Qc3 {[%emt 0:00:06]} Kb1 {[%emt 0:00:20]} 66. Qb3+ {[%emt 0:00:02]} Kc1 {[%emt 0:00:30]} 67. g4 {[%emt 0:00:07]} Kd2 {[%emt 0:00:10]} 68. Qb4+ {[%emt 0:00:35]} Kd1 {[%emt 0:00:11]} 69. Qd4+ {[%emt 0:00:05]} Ke2 {[%emt 0:00:24]} 70. Qc3 {[%emt 0:00:05]} Kd1 {[%emt 0:00:18]} 71. Qd3+ {[%emt 0:00:01]} Kc1 {[%emt 0:00:08]} 72. Kf4 {[%emt 0:00:02]} Kb2 {[%emt 0:00:26]} 73. Qd4+ {[%emt 0:00:09]} Kb3 {[%emt 0:00:34]} 74. Qa1 {[%emt 0:00:09]} a6 {[%emt 0:00:12]} 75. Ke3 {[%emt 0:00:11]} b5 {[%emt 0:00:05]} 76. axb5 {[%emt 0:00:06]} axb5 {[%emt 0:00:20]} 77. Kd3 {[%emt 0:00:16]} b4 {[%emt 0:00:15]} 78. Qc1 {[%emt 0:00:11]} Ka2 {[%emt 0:00:17]} 79. Kxc2 {[%emt 0:00:00]} b3+ {[%emt 0:00:13]} 80. Kc3 {[%emt 0:00:02]} b2 {[%emt 0:00:10]} 81. Qxb2# {[%emt 0:00:02]} 1-0

[Event "Hungarian Youth-ch U10 2022"]
[Site "Eger"]
[Date "2022.07.31"]
[Round "9.3"]
[White "Minga-Nagy, Abel Inti"]
[Black "Hangay, Oliver"]
[Result "1-0"]
[ECO "B06"]
[WhiteElo "1540"]
[BlackElo "1695"]
[Annotator "NA RC"]
[PlyCount "95"]
[EventDate "2022.07.21"]
[EventType "tourn"]
[EventCountry "HUN"]
[SourceTitle "playchess.com"]
[Source "ChessBase"]
[SourceQuality "1"]
[TimeControl "40/5400+30:1800+30"]

1. e4 {[%emt 0:00:31]} g6 {[%emt 0:00:53]} 2. d4 {[%emt 0:01:23]} Bg7 {[%emt 0:00:25]} 3. Nf3 {[%emt 0:01:21]} c5 {[%emt 0:00:20]} 4. c3 {[%emt 0:01:54]} cxd4 {[%emt 0:03:00]} 5. cxd4 {[%emt 0:02:21]} d6 {[%emt 0:02:11]} 6. Nc3 {[%emt 0:02:40]} Bg4 {[%emt 0:02:36]} 7. Bb5+ {[%emt 0:02:11]} Nd7 {[%emt 0:04:20]} 8. Be3 {[%emt 0:02:15]} a6 {[%emt 0:01:37]} 9. Bc4 {[%emt 0:01:23]} e6 {[%emt 0:02:35]} 10. h3 {[%emt 0:02:50]} Bxf3 {[%emt 0:00:24]} 11. Qxf3 {[%emt 0:00:16]} Qb6 {[%emt 0:10:16]} 12. O-O-O {[%emt 0:01:13]} Qc7 {[%emt 0:04:09]} 13. Bb3 {[%emt 0:01:26]} Ne7 {[%emt 0:02:02]} 14. Kb1 {[%emt 0:02:39]} O-O {[%emt 0:02:13]} 15. h4 {[%emt 0:02:19]} h5 {[%emt 0:09:08]} 16. g4 {[%emt 0:01:14]} Nf6 {[%emt 0:01:41]} 17. gxh5 {[%emt 0:00:55]} Nxh5 {[%emt 0:00:38]} 18. Rdg1 {[%emt 0:02:07]} Qd7 {[%emt 0:12:43]} 19. Bh6 {[%emt 0:01:21]} Bxh6 {[%emt 0:05:56]} 20. Qxh5 {[%emt 0:00:13]} Kh7 {[%emt 0:01:17]} 21. Qf3 {[%emt 0:00:37]} Nc6 {[%emt 0:08:03]} 22. h5 {[%emt 0:01:44]} g5 {[%emt 0:03:15]} 23. e5 {[%emt 0:02:23]} Nxd4 {[%emt 0:03:45]} 24. Qd3+ {[%emt 0:00:15]} Nf5 {[%emt 0:00:15]} 25. Ne4 {[%emt 0:00:10]} Qb5 {[%emt 0:02:06]} 26. Qxb5 {[%emt 0:01:43]} axb5 {[%emt 0:00:01]} 27. exd6 {[%emt 0:00:29]} Rad8 {[%emt 0:03:11]} 28. Rd1 {[%emt 0:02:10]} e5 {[%emt 0:01:55]} 29. Rd5 {[%emt 0:00:29]} b4 {[%emt 0:05:56]} 30. Rxe5 Nxd6 {[%emt 0:00:31]} 31. Nxg5+ {[%emt 0:02:13]} Bxg5 {[%emt 0:00:35]} 32. Rxg5 {[%emt 0:00:07]} Rg8 {[%emt 0:01:45]} 33. Rhg1 {[%emt 0:00:33]} Rxg5 {[%emt 0:03:59]} 34. Rxg5 {[%emt 0:00:07]} Ne4 {[%emt 0:00:41]} 35. Rd5 {[%emt 0:01:06]} Rxd5 {[%emt 0:01:09]} 36. Bxd5 {[%emt 0:00:08]} Nxf2 {[%emt 0:00:08]} 37. Bxb7 {[%emt 0:00:05]} f5 {[%emt 0:00:55]} 38. Kc2 {[%emt 0:00:09]} Kh6 {[%emt 0:00:50]} 39. Bf3 {[%emt 0:01:37]} Ng4 {[%emt 0:00:27]} 40. Kb3 {[%emt 0:00:00]} Kxh5 {[%emt 0:00:00]} 41. Kxb4 {[%emt 0:00:57]} Kg5 {[%emt 0:00:28]} 42. a4 {[%emt 0:00:18]} Ne5 {[%emt 0:00:04]} 43. Bg2 {[%emt 0:00:33]} f4 {[%emt 0:00:54]} 44. a5 {[%emt 0:00:21]} f3 {[%emt 0:00:00]} 45. Bf1 {[%emt 0:00:17]} Kf4 {[%emt 0:00:00]} 46. a6 {[%emt 0:00:38]} Ke4 {[%emt 0:00:37]} 47. Kc5 {[%emt 0:00:26]} Nd3+ {[%emt 0:00:34]} 48. Kd6 1-0

[Event "Hungarian Youth-ch U10 2022"]
[Site "Eger"]
[Date "2022.07.31"]
[Round "9.4"]
[White "Meszaros-Csonka, David"]
[Black "Hegedus, Bernat"]
[Result "0-1"]
[ECO "D00"]
[WhiteElo "1361"]
[BlackElo "1491"]
[Annotator "NA RC"]
[PlyCount "88"]
[EventDate "2022.07.21"]
[EventType "tourn"]
[EventCountry "HUN"]
[SourceTitle "playchess.com"]
[Source "ChessBase"]
[SourceQuality "1"]
[TimeControl "40/5400+30:1800+30"]

1. d4 {[%emt 0:01:03]} d5 {[%emt 0:01:07]} 2. Bf4 {[%emt 0:00:45]} c5 {[%emt 0:03:51]} 3. e3 {[%emt 0:03:40]} Nc6 {[%emt 0:00:53]} 4. c3 {[%emt 0:02:18]} e6 {[%emt 0:02:34]} 5. Nf3 {[%emt 0:01:47]} Nf6 {[%emt 0:02:39]} 6. Nbd2 {[%emt 0:02:07]} Be7 {[%emt 0:01:45]} 7. Ne5 {[%emt 0:03:03]} O-O {[%emt 0:03:16]} 8. Bd3 {[%emt 0:03:37]} Nd7 {[%emt 0:07:19]} 9. O-O {[%emt 0:14:25]} Qe8 {[%emt 0:08:41]} 10. Nxc6 {[%emt 0:11:16]} bxc6 {[%emt 0:03:51]} 11. Qc2 {[%emt 0:05:42]} f5 {[%emt 0:13:31]} 12. f3 {[%emt 0:11:40]} cxd4 {[%emt 0:02:19]} 13. cxd4 {[%emt 0:07:05]} c5 {[%emt 0:04:36]} 14. e4 {[%emt 0:05:25]} cxd4 {[%emt 0:07:32]} 15. exf5 {[%emt 0:05:40]} e5 {[%emt 0:02:24]} 16. Qc6 {[%emt 0:04:47]} Nb6 {[%emt 0:03:34]} 17. Qxe8 {[%emt 0:00:33]} Rxe8 {[%emt 0:00:24]} 18. Bxe5 {[%emt 0:03:06]} Bb4 {[%emt 0:02:09]} 19. Bf4 {[%emt 0:00:17]} Bxd2 {[%emt 0:00:21]} 20. Bxd2 {[%emt 0:00:09]} Nc4 {[%emt 0:00:21]} 21. Bxc4 {[%emt 0:00:48]} dxc4 {[%emt 0:01:04]} 22. g4 {[%emt 0:00:47]} Rb8 {[%emt 0:01:35]} 23. Rfe1 {[%emt 0:02:24]} Rd8 {[%emt 0:00:44]} 24. Rab1 {[%emt 0:01:46]} Bd7 {[%emt 0:01:20]} 25. Bf4 {[%emt 0:02:29]} Rb5 {[%emt 0:02:10]} 26. Be5 {[%emt 0:01:11]} Bc6 {[%emt 0:03:26]} 27. Kf2 {[%emt 0:00:10]} a5 {[%emt 0:01:13]} 28. Kg3 {[%emt 0:01:14]} a4 {[%emt 0:00:35]} 29. Rbc1 {[%emt 0:01:28]} d3 {[%emt 0:01:38]} 30. Rcd1 {[%emt 0:02:40]} a3 {[%emt 0:00:31]} 31. bxa3 {[%emt 0:01:31]} Rxe5 {[%emt 0:04:03]} 32. Rxe5 {[%emt 0:00:09]} c3 {[%emt 0:00:08]} 33. Rc5 {[%emt 0:00:14]} Ba4 {[%emt 0:00:17]} 34. Rxc3 {[%emt 0:01:20]} Bxd1 {[%emt 0:00:26]} 35. Kf2 {[%emt 0:00:21]} Ba4 {[%emt 0:00:21]} 36. Rxd3 {[%emt 0:00:35]} Rxd3 {[%emt 0:00:14]} 37. Ke2 {[%emt 0:00:11]} Rxa3 {[%emt 0:00:13]} 38. h4 {[%emt 0:00:08]} Rxa2+ {[%emt 0:00:11]} 39. Ke3 {[%emt 0:00:04]} Bd1 {[%emt 0:00:29]} 40. Kf4 {[%emt 0:00:00]} Ra3 {[%emt 0:00:00]} 41. Kg5 {[%emt 0:01:17]} Rxf3 {[%emt 0:01:10]} 42. h5 {[%emt 0:00:15]} h6+ {[%emt 0:00:14]} 43. Kg6 {[%emt 0:00:05]} Ba4 {[%emt 0:00:16]} 44. f6 {[%emt 0:00:16]} Bc2# {[%emt 0:00:10]} 0-1

[Event "Hungarian Youth-ch U10 2022"]
[Site "Eger"]
[Date "2022.07.31"]
[Round "9.5"]
[White "Molnar-Saska, Tamas"]
[Black "Szollosi, Balazs"]
[Result "0-1"]
[ECO "B34"]
[WhiteElo "1455"]
[BlackElo "1423"]
[Annotator "NA RC"]
[PlyCount "84"]
[EventDate "2022.07.21"]
[EventType "tourn"]
[EventCountry "HUN"]
[SourceTitle "playchess.com"]
[Source "ChessBase"]
[SourceQuality "1"]
[TimeControl "40/5400+30:1800+30"]

1. e4 {[%emt 0:03:30]} c5 {[%emt 0:00:50]} 2. Nf3 {[%emt 0:00:04]} Nc6 {[%emt 0:00:31]} 3. d4 {[%emt 0:01:26]} cxd4 {[%emt 0:00:18]} 4. Nxd4 {[%emt 0:00:10]} Nf6 {[%emt 0:00:20]} 5. Nc3 {[%emt 0:00:15]} e5 {[%emt 0:00:44]} 6. Ndb5 {[%emt 0:00:05]} d6 {[%emt 0:00:21]} 7. Bg5 {[%emt 0:00:14]} Be7 {[%emt 0:00:36]} 8. Bxf6 {[%emt 0:00:27]} gxf6 {[%emt 0:01:04]} 9. Nd5 {[%emt 0:01:43]} O-O {[%emt 0:08:25]} 10. Nxe7+ {[%emt 0:03:42]} Qxe7 {[%emt 0:00:19]} 11. Qxd6 {[%emt 0:00:42]} Qxd6 {[%emt 0:00:35]} 12. Nxd6 {[%emt 0:00:36]} Nb4 {[%emt 0:03:40]} 13. Bd3 {[%emt 0:02:39]} Rd8 {[%emt 0:02:32]} 14. Nxc8 {[%emt 0:00:23]} Raxc8 {[%emt 0:00:20]} 15. Kd2 {[%emt 0:01:53]} Rxc2+ {[%emt 0:01:04]} 16. Ke1 {[%emt 0:01:46]} Nxd3+ {[%emt 0:00:14]} 17. Kd1 {[%emt 0:00:43]} Rxb2 {[%emt 0:00:35]} 18. Rf1 {[%emt 0:00:52]} Rxf2 {[%emt 0:03:08]} 19. Rh1 {[%emt 0:01:06]} Rxg2 {[%emt 0:00:57]} 20. Rf1 {[%emt 0:01:35]} Nc5+ {[%emt 0:02:11]} 21. Kc1 {[%emt 0:00:57]} Nxe4 {[%emt 0:00:16]} 22. Rb1 {[%emt 0:00:53]} Rc8+ {[%emt 0:00:14]} 23. Kd1 {[%emt 0:00:20]} Nc3+ {[%emt 0:00:10]} 24. Kc1 {[%emt 0:00:40]} Nxb1+ {[%emt 0:00:20]} 25. Kxb1 {[%emt 0:00:18]} e4 {[%emt 0:00:30]} 26. Re1 {[%emt 0:00:26]} Re8 {[%emt 0:00:31]} 27. Kc1 {[%emt 0:01:09]} e3 {[%emt 0:00:10]} 28. Kd1 {[%emt 0:00:24]} e2+ {[%emt 0:00:05]} 29. Kd2 {[%emt 0:00:27]} Rd8+ {[%emt 0:00:38]} 30. Kc2 {[%emt 0:00:40]} Rd1 {[%emt 0:00:17]} 31. Rxd1 {[%emt 0:00:27]} exd1=Q+ {[%emt 0:00:12]} 32. Kxd1 {[%emt 0:00:18]} Kg7 {[%emt 0:00:11]} 33. h4 {[%emt 0:00:12]} Kg6 {[%emt 0:00:04]} 34. h5+ {[%emt 0:00:28]} Kf5 {[%emt 0:00:05]} 35. a3 {[%emt 0:00:22]} Ke4 {[%emt 0:00:04]} 36. a4 {[%emt 0:00:18]} Kd3 {[%emt 0:00:10]} 37. Ke1 {[%emt 0:00:18]} Ke3 {[%emt 0:00:19]} 38. Kf1 {[%emt 0:00:50]} Ra2 {[%emt 0:00:05]} 39. h6 {[%emt 0:00:42]} a5 {[%emt 0:00:21]} 40. Kg1 {[%emt 0:00:00]} Kf3 {[%emt 0:00:00]} 41. Kh1 {[%emt 0:00:18]} Kg3 {[%emt 0:01:49]} 42. Kg1 {[%emt 0:00:15]} Ra1# 0-1

[Event "Hungarian Youth-ch U10 2022"]
[Site "Eger"]
[Date "2022.07.31"]
[Round "9.6"]
[White "Ferenczy, Nora"]
[Black "Illes-Nagy, Nora"]
[Result "1/2-1/2"]
[ECO "D52"]
[WhiteElo "1051"]
[BlackElo "1402"]
[Annotator "NA RC"]
[PlyCount "154"]
[EventDate "2022.07.21"]
[EventType "tourn"]
[EventCountry "HUN"]
[SourceTitle "playchess.com"]
[Source "ChessBase"]
[SourceQuality "1"]
[TimeControl "40/5400+30:1800+30"]

1. d4 {[%emt 0:00:31]} d5 {[%emt 0:00:40]} 2. c4 {[%emt 0:00:12]} c6 {[%emt 0:00:49]} 3. Nc3 {[%emt 0:00:56]} Nf6 {[%emt 0:01:09]} 4. Nf3 {[%emt 0:00:32]} e6 {[%emt 0:00:46]} 5. Bg5 {[%emt 0:00:34]} Nbd7 {[%emt 0:01:19]} 6. e3 {[%emt 0:02:57]} Qa5 {[%emt 0:01:29]} 7. a3 {[%emt 0:05:05]} Ne4 {[%emt 0:13:25]} 8. Qc2 {[%emt 0:07:44]} Bb4 {[%emt 0:15:51]} 9. Rc1 {[%emt 0:04:02]} Bxc3+ {[%emt 0:02:12]} 10. bxc3 {[%emt 0:02:17]} Qxa3 {[%emt 0:01:00]} 11. Bf4 {[%emt 0:15:41]} O-O {[%emt 0:05:20]} 12. Bd3 {[%emt 0:03:06]} Nef6 {[%emt 0:00:45]} 13. cxd5 {[%emt 0:02:35]} exd5 {[%emt 0:02:43]} 14. O-O {[%emt 0:02:30]} Qe7 {[%emt 0:04:30]} 15. Nh4 {[%emt 0:10:52]} Nb6 {[%emt 0:03:42]} 16. Qa2 {[%emt 0:15:39]} Nh5 {[%emt 0:03:32]} 17. Bg3 {[%emt 0:05:26]} Nxg3 {[%emt 0:00:58]} 18. hxg3 {[%emt 0:00:11]} Be6 {[%emt 0:04:57]} 19. Kh2 {[%emt 0:04:58]} g6 {[%emt 0:11:03]} 20. Rh1 {[%emt 0:02:46]} Kg7 {[%emt 0:01:31]} 21. f4 {[%emt 0:02:41]} f5 {[%emt 0:01:34]} 22. Kg1 {[%emt 0:00:34]} Rh8 {[%emt 0:01:01]} 23. Kf2 {[%emt 0:00:41]} Qf7 {[%emt 0:03:19]} 24. Nf3 {[%emt 0:01:33]} h6 {[%emt 0:01:39]} 25. Rh2 {[%emt 0:02:28]} Nc4 {[%emt 0:04:17]} 26. Rch1 {[%emt 0:01:16]} Nd6 {[%emt 0:02:09]} 27. Ne5 {[%emt 0:01:16]} Qg8 {[%emt 0:01:36]} 28. Qb2 {[%emt 0:00:54]} Rb8 {[%emt 0:00:37]} 29. Qa3 {[%emt 0:00:55]} Qf8 {[%emt 0:00:40]} 30. Qxa7 {[%emt 0:01:20]} Ra8 {[%emt 0:01:21]} 31. Qc5 {[%emt 0:00:33]} Ne4+ {[%emt 0:00:34]} 32. Bxe4 {[%emt 0:00:17]} Qxc5 {[%emt 0:00:08]} 33. dxc5 {[%emt 0:00:09]} dxe4 {[%emt 0:00:12]} 34. Rb1 {[%emt 0:00:44]} Rhb8 {[%emt 0:00:33]} 35. Rb2 {[%emt 0:00:23]} h5 {[%emt 0:01:05]} 36. Rh1 {[%emt 0:00:16]} Ra2 {[%emt 0:03:51]} 37. Rhb1 {[%emt 0:00:28]} Rba8 {[%emt 0:00:28]} 38. Kg1 {[%emt 0:01:02]} Rxb2 {[%emt 0:00:22]} 39. Rxb2 {[%emt 0:00:07]} Ra1+ {[%emt 0:00:37]} 40. Kh2 {[%emt 0:00:00]} Ra7 {[%emt 0:00:00]} 41. Kh3 {[%emt 0:00:38]} Kh6 {[%emt 0:00:51]} 42. Kh4 {[%emt 0:00:18]} Ra1 {[%emt 0:00:51]} 43. g4 {[%emt 0:01:56]} Ra7 {[%emt 0:02:48]} 44. g5+ {[%emt 0:02:37]} Kg7 {[%emt 0:00:16]} 45. g3 {[%emt 0:00:33]} Bf7 {[%emt 0:05:08]} 46. Nd7 {[%emt 0:01:57]} Bd5 {[%emt 0:04:02]} 47. Kh3 {[%emt 0:02:20]} Be6 {[%emt 0:04:28]} 48. Ne5 {[%emt 0:00:32]} Bf7 {[%emt 0:02:48]} 49. Kg2 {[%emt 0:00:21]} Be8 {[%emt 0:04:57]} 50. Nc4 {[%emt 0:01:54]} Bf7 {[%emt 0:02:29]} 51. Nd6 {[%emt 0:00:09]} Ra2 {[%emt 0:00:52]} 52. Rxa2 {[%emt 0:00:29]} Bxa2 {[%emt 0:00:06]} 53. Nxb7 {[%emt 0:00:07]} Be6 {[%emt 0:01:28]} 54. Kf2 {[%emt 0:00:34]} Bc8 {[%emt 0:00:30]} 55. Nd6 {[%emt 0:00:26]} Bd7 {[%emt 0:00:14]} 56. Ke2 {[%emt 0:00:32]} Kf8 {[%emt 0:00:51]} 57. Kd2 {[%emt 0:00:28]} Ke7 {[%emt 0:00:47]} 58. c4 {[%emt 0:01:08]} Be6 {[%emt 0:00:30]} 59. Kc3 {[%emt 0:00:42]} Bd7 {[%emt 0:01:51]} 60. Kb4 {[%emt 0:00:31]} Kd8 {[%emt 0:01:06]} 61. Ka5 {[%emt 0:00:27]} Kc7 {[%emt 0:00:18]} 62. Ka6 {[%emt 0:00:15]} Be6 {[%emt 0:00:39]} 63. Ka7 {[%emt 0:01:59]} Bd7 {[%emt 0:00:53]} 64. Nf7 {[%emt 0:01:09]} Be6 {[%emt 0:01:27]} 65. Ne5 {[%emt 0:00:24]} Bg8 {[%emt 0:00:25]} 66. Nxg6 {[%emt 0:00:42]} Bxc4 {[%emt 0:00:18]} 67. Ne7 {[%emt 0:00:49]} Be6 {[%emt 0:00:18]} 68. g6 {[%emt 0:00:04]} Kd7 {[%emt 0:00:22]} 69. Kb6 {[%emt 0:02:08]} Kxe7 {[%emt 0:01:37]} 70. Kxc6 {[%emt 0:00:19]} Kf6 {[%emt 0:02:41]} 71. Kd6 {[%emt 0:01:41]} Bc8 {[%emt 0:00:40]} 72. c6 {[%emt 0:00:32]} Kxg6 {[%emt 0:00:51]} 73. Kc7 {[%emt 0:01:34]} Ba6 {[%emt 0:00:22]} 74. Kb6 {[%emt 0:00:41]} Bc8 {[%emt 0:00:14]} 75. Kc7 {[%emt 0:00:47]} Ba6 {[%emt 0:00:07]} 76. Kb6 {[%emt 0:00:09]} Bc8 {[%emt 0:00:05]} 77. Kc7 {[%emt 0:00:48]} Ba6 {[%emt 0:00:07]} 1/2-1/2

[Event "Hungarian Youth-ch U10 2022"]
[Site "Eger"]
[Date "2022.07.31"]
[Round "9.7"]
[White "Biro, Csilla"]
[Black "Hangyal, Anna"]
[Result "0-1"]
[ECO "B24"]
[WhiteElo "1215"]
[BlackElo "1154"]
[Annotator "NA RC"]
[PlyCount "60"]
[EventDate "2022.07.21"]
[EventType "tourn"]
[EventCountry "HUN"]
[SourceTitle "playchess.com"]
[Source "ChessBase"]
[SourceQuality "1"]
[TimeControl "40/5400+30:1800+30"]

1. e4 {[%emt 0:00:33]} c5 {[%emt 0:00:38]} 2. Nc3 {[%emt 0:00:30]} Nc6 {[%emt 0:00:12]} 3. g3 {[%emt 0:00:32]} g6 {[%emt 0:00:12]} 4. Bg2 {[%emt 0:00:28]} Bg7 {[%emt 0:00:27]} 5. d3 {[%emt 0:01:54]} e5 {[%emt 0:02:21]} 6. Be3 {[%emt 0:02:37]} d6 {[%emt 0:00:20]} 7. Nd5 {[%emt 0:05:40]} Nge7 {[%emt 0:06:08]} 8. Qd2 {[%emt 0:01:12]} Nxd5 {[%emt 0:03:35]} 9. exd5 {[%emt 0:01:46]} Nd4 {[%emt 0:01:06]} 10. Nf3 {[%emt 0:14:55]} Bh3 {[%emt 0:10:11]} 11. Nxd4 {[%emt 0:05:12]} Bxg2 {[%emt 0:00:32]} 12. Rg1 {[%emt 0:02:12]} cxd4 {[%emt 0:01:41]} 13. Bg5 {[%emt 0:03:04]} f6 {[%emt 0:03:42]} 14. Bxf6 {[%emt 0:01:04]} Bxf6 15. Rxg2 Rc8 {[%emt 0:02:10]} 16. f4 {[%emt 0:04:08]} O-O {[%emt 0:02:53]} 17. O-O-O {[%emt 0:01:49]} b6 {[%emt 0:00:40]} 18. Kb1 {[%emt 0:00:14]} a5 {[%emt 0:00:04]} 19. fxe5 {[%emt 0:00:28]} dxe5 {[%emt 0:00:14]} 20. g4 {[%emt 0:00:58]} Qxd5 {[%emt 0:00:19]} 21. g5 {[%emt 0:00:42]} Bg7 {[%emt 0:00:12]} 22. Rg3 {[%emt 0:01:17]} Rf7 {[%emt 0:03:48]} 23. Qe2 {[%emt 0:02:57]} Rcf8 {[%emt 0:00:17]} 24. Rh3 {[%emt 0:01:52]} Rf2 {[%emt 0:00:17]} 25. Qg4 {[%emt 0:01:17]} Rf1 {[%emt 0:00:24]} 26. Rc1 {[%emt 0:00:35]} Rxc1+ {[%emt 0:00:18]} 27. Kxc1 {[%emt 0:00:17]} Qh1+ {[%emt 0:00:04]} 28. Kd2 {[%emt 0:02:47]} Rf2+ {[%emt 0:00:15]} 29. Qe2 {[%emt 0:00:26]} Rxe2+ {[%emt 0:00:09]} 30. Kxe2 {[%emt 0:00:02]} Qg2+ {[%emt 0:00:07]} 0-1

[Event "Hungarian Youth-ch U10 2022"]
[Site "Eger"]
[Date "2022.07.31"]
[Round "9.8"]
[White "Csiszar, Vivien"]
[Black "Wang, Luomeng"]
[Result "1-0"]
[ECO "B15"]
[WhiteElo "1068"]
[BlackElo "1078"]
[Annotator "NA RC"]
[PlyCount "69"]
[EventDate "2022.07.21"]
[EventType "tourn"]
[EventCountry "HUN"]
[SourceTitle "playchess.com"]
[Source "ChessBase"]
[SourceQuality "1"]
[TimeControl "40/5400+30:1800+30"]

1. e4 {[%emt 0:00:33]} c6 {[%emt 0:00:45]} 2. d4 {[%emt 0:00:14]} d5 {[%emt 0:00:16]} 3. Nc3 {[%emt 0:00:21]} e6 {[%emt 0:01:47]} 4. e5 {[%emt 0:03:28]} Bb4 {[%emt 0:01:58]} 5. Nf3 {[%emt 0:10:49]} Ne7 {[%emt 0:04:51]} 6. Bd3 {[%emt 0:02:52]} Bxc3+ {[%emt 0:00:42]} 7. bxc3 {[%emt 0:00:17]} O-O {[%emt 0:01:00]} 8. Bxh7+ {[%emt 0:19:32]} Kh8 {[%emt 0:08:19]} 9. Bd3 {[%emt 0:23:06]} Ng8 {[%emt 0:14:50]} 10. Ng5 {[%emt 0:02:38]} Nh6 {[%emt 0:04:38]} 11. Qh5 {[%emt 0:03:39]} Qe7 {[%emt 0:05:04]} 12. a4 {[%emt 0:07:49]} Nd7 {[%emt 0:04:50]} 13. Bg6 {[%emt 0:05:19]} Kg8 {[%emt 0:03:22]} 14. Bd3 {[%emt 0:02:23]} b6 {[%emt 0:08:59]} 15. Nf3 {[%emt 0:02:39]} Nf5 {[%emt 0:04:24]} 16. Bxf5 {[%emt 0:00:48]} g6 {[%emt 0:01:12]} 17. Qh6 {[%emt 0:01:09]} exf5 {[%emt 0:01:17]} 18. Ng5 {[%emt 0:07:27]} f6 {[%emt 0:00:55]} 19. Qxg6+ {[%emt 0:00:20]} Qg7 {[%emt 0:00:08]} 20. Qxg7+ {[%emt 0:00:07]} Kxg7 {[%emt 0:00:05]} 21. Ne6+ {[%emt 0:00:07]} Kf7 {[%emt 0:00:27]} 22. Nxf8 {[%emt 0:00:06]} Nxf8 23. exf6 {[%emt 0:00:55]} Kxf6 {[%emt 0:00:23]} 24. Bf4 {[%emt 0:00:18]} Ba6 {[%emt 0:00:47]} 25. h4 {[%emt 0:00:52]} Re8+ {[%emt 0:00:10]} 26. Be5+ {[%emt 0:00:34]} Kg6 {[%emt 0:00:30]} 27. h5+ {[%emt 0:00:15]} Kh6 {[%emt 0:00:23]} 28. Kd2 {[%emt 0:00:19]} Nd7 {[%emt 0:00:22]} 29. Bf4+ {[%emt 0:00:14]} Kh7 {[%emt 0:00:14]} 30. Rhe1 {[%emt 0:00:17]} Rd8 {[%emt 0:00:44]} 31. Re7+ {[%emt 0:00:17]} Kg8 {[%emt 0:00:48]} 32. Bc7 {[%emt 0:00:27]} Rf8 {[%emt 0:00:44]} 33. Rxd7 {[%emt 0:00:11]} Rf7 {[%emt 0:00:53]} 34. Rxf7 {[%emt 0:00:05]} Kxf7 {[%emt 0:00:06]} 35. Rh1 {[%emt 0:00:04]} 1-0